[Event "*** SCC Grand Prix: Titled Tuesday Blitz"]
[Site "Chess.com"]
[Date "2020.09.08"]
[Round "7"]
[White "JoliyRoger"]
[Black "Paladin61"]
[Result "0-1"]
[WhiteElo "2416"]
[BlackElo "2646"]
[TimeControl "180+1"]
[EndTime "11:19:23 PDT"]
[Termination "Paladin61 won by checkmate"]

1. Nf3 {[%clk 0:03:00.9]} 1... Nf6 {[%clk 0:02:57.7]} 2. c4 {[%clk 0:03:01.2]}
2... g6 {[%clk 0:02:57.7]} 3. Nc3 {[%clk 0:03:01.7]} 3... Bg7 {[%clk 0:02:58]}
4. e4 {[%clk 0:03:02.1]} 4... d6 {[%clk 0:02:58.2]} 5. d4 {[%clk 0:03:02.6]}
5... O-O {[%clk 0:02:58.4]} 6. h3 {[%clk 0:03:03.1]} 6... e5 {[%clk 0:02:58.2]}
7. d5 {[%clk 0:03:02.6]} 7... Nh5 {[%clk 0:02:57.9]} 8. Nh2 {[%clk 0:03:01.4]}
8... Na6 {[%clk 0:02:57.4]} 9. g3 {[%clk 0:02:59]} 9... Qe8 {[%clk 0:02:50.3]}
10. Be2 {[%clk 0:02:57]} 10... Nf6 {[%clk 0:02:49.4]} 11. Ng4 {[%clk 0:02:57.2]}
11... Bd7 {[%clk 0:02:34.6]} 12. Nxf6+ {[%clk 0:02:35.3]} 12... Bxf6 {[%clk
0:02:34.4]} 13. h4 {[%clk 0:02:36.2]} 13... Bg7 {[%clk 0:02:26.9]} 14. h5 {[%clk
0:02:35.8]} 14... f5 {[%clk 0:02:25.5]} 15. hxg6 {[%clk 0:02:35]} 15... hxg6
{[%clk 0:02:25]} 16. Bg5 {[%clk 0:02:28.4]} 16... Nc5 {[%clk 0:02:20.2]} 17. Qc2
{[%clk 0:02:26.7]} 17... a6 {[%clk 0:01:58.9]} 18. Be3 {[%clk 0:02:25.7]} 18...
b5 {[%clk 0:01:46.3]} 19. Bxc5 {[%clk 0:02:13.5]} 19... dxc5 {[%clk 0:01:45.4]}
20. Bd3 {[%clk 0:02:02.3]} 20... b4 {[%clk 0:01:35.2]} 21. Nb1 {[%clk
0:01:36.9]} 21... a5 {[%clk 0:01:23.1]} 22. Qe2 {[%clk 0:01:29]} 22... a4 {[%clk
0:01:17.5]} 23. Nd2 {[%clk 0:01:29]} 23... c6 {[%clk 0:01:06.6]} 24. O-O-O
{[%clk 0:01:26.5]} 24... Rc8 {[%clk 0:00:59.9]} 25. Kb1 {[%clk 0:01:20.8]} 25...
Qe7 {[%clk 0:00:55.9]} 26. Nf3 {[%clk 0:01:13.6]} 26... Qf6 {[%clk 0:00:29.7]}
27. Nh4 {[%clk 0:00:46.3]} 27... Rf7 {[%clk 0:00:21.1]} 28. Rdg1 {[%clk
0:00:38.9]} 28... Kf8 {[%clk 0:00:19.9]} 29. Rg2 {[%clk 0:00:23.7]} 29... a3
{[%clk 0:00:19.2]} 30. b3 {[%clk 0:00:23.1]} 30... Rd8 {[%clk 0:00:18.8]} 31.
Rgh2 {[%clk 0:00:20.9]} 31... Rc8 {[%clk 0:00:16]} 32. Qc2 {[%clk 0:00:20.5]}
32... Ke7 {[%clk 0:00:14]} 33. Nf3 {[%clk 0:00:20.4]} 33... Kd6 {[%clk
0:00:13.6]} 34. Nd2 {[%clk 0:00:20.3]} 34... Kc7 {[%clk 0:00:13]} 35. Qd1 {[%clk
0:00:20]} 35... Kb6 {[%clk 0:00:12.1]} 36. Qe2 {[%clk 0:00:20.4]} 36... Rcf8
{[%clk 0:00:11.5]} 37. Qe3 {[%clk 0:00:19.2]} 37... Qd6 {[%clk 0:00:10.2]} 38.
Qe2 {[%clk 0:00:19.6]} 38... Ka5 {[%clk 0:00:10.1]} 39. Nf1 {[%clk 0:00:18.2]}
39... Bf6 {[%clk 0:00:09.5]} 40. Ne3 {[%clk 0:00:17.8]} 40... Bg5 {[%clk
0:00:09.1]} 41. Nc2 {[%clk 0:00:18.4]} 41... Bd8 {[%clk 0:00:05.9]} 42. Ne3
{[%clk 0:00:17.5]} 42... Bg5 {[%clk 0:00:05.5]} 43. Nc2 {[%clk 0:00:17.4]} 43...
Be7 {[%clk 0:00:05.5]} 44. Rh6 {[%clk 0:00:17.5]} 44... Qf6 {[%clk 0:00:05.4]}
45. exf5 {[%clk 0:00:15.8]} 45... Bxf5 {[%clk 0:00:05.3]} 46. R1h2 {[%clk
0:00:14.6]} 46... e4 {[%clk 0:00:05.4]} 47. Bxe4 {[%clk 0:00:13.8]} 47... Qb2#
{[%clk 0:00:04.7]} 0-1

[Event "*** SCC Grand Prix: Titled Tuesday Blitz"]
[Site "Chess.com"]
[Date "2020.09.08"]
[Round "7"]
[White "KatarinaOstojic"]
[Black "Yoshikrov"]
[Result "1-0"]
[WhiteElo "2335"]
[BlackElo "2105"]
[TimeControl "180+1"]
[EndTime "11:19:24 PDT"]
[Termination "KatarinaOstojic won on time"]

1. d4 {[%clk 0:03:00.9]} 1... Nf6 {[%clk 0:02:59.8]} 2. Nf3 {[%clk 0:03:01.5]}
2... d5 {[%clk 0:02:59.4]} 3. c4 {[%clk 0:03:00.7]} 3... g6 {[%clk 0:02:59]} 4.
Nc3 {[%clk 0:03:01.2]} 4... Bg7 {[%clk 0:02:58.9]} 5. e3 {[%clk 0:03:01.5]} 5...
O-O {[%clk 0:02:58.7]} 6. Be2 {[%clk 0:03:02.1]} 6... c5 {[%clk 0:02:49.8]} 7.
O-O {[%clk 0:02:58.8]} 7... Nc6 {[%clk 0:02:48.6]} 8. dxc5 {[%clk 0:02:53.7]}
8... dxc4 {[%clk 0:02:38.1]} 9. Bxc4 {[%clk 0:02:54.6]} 9... Bg4 {[%clk
0:02:37.9]} 10. Be2 {[%clk 0:02:47.7]} 10... Qa5 {[%clk 0:02:34]} 11. Qa4 {[%clk
0:02:41]} 11... Qxa4 {[%clk 0:02:30.6]} 12. Nxa4 {[%clk 0:02:40.5]} 12... Ne4
{[%clk 0:02:31]} 13. h3 {[%clk 0:02:32.7]} 13... Bd7 {[%clk 0:02:23.3]} 14. Bd3
{[%clk 0:02:28.8]} 14... Nf6 {[%clk 0:02:13.8]} 15. Bb5 {[%clk 0:02:23]} 15...
Rac8 {[%clk 0:02:09.6]} 16. Bd2 {[%clk 0:02:19.7]} 16... Ne4 {[%clk 0:02:09.5]}
17. Rac1 {[%clk 0:02:17]} 17... a6 {[%clk 0:02:02]} 18. Bxc6 {[%clk 0:01:58.1]}
18... Bxc6 {[%clk 0:02:02]} 19. Nc3 {[%clk 0:01:58.7]} 19... Nxd2 {[%clk
0:02:00.9]} 20. Nxd2 {[%clk 0:01:58.2]} 20... Rfd8 {[%clk 0:01:52.7]} 21. Nc4
{[%clk 0:01:56.7]} 21... Bxc3 {[%clk 0:01:29.8]} 22. Rxc3 {[%clk 0:01:55.4]}
22... Bb5 {[%clk 0:01:30.1]} 23. Nb6 {[%clk 0:01:44.2]} 23... Bxf1 {[%clk
0:00:54.8]} 24. Nxc8 {[%clk 0:01:43]} 24... Rd1 {[%clk 0:00:40.2]} 25. Kh2
{[%clk 0:01:39.6]} 25... Kf8 {[%clk 0:00:36.5]} 26. Kg3 {[%clk 0:01:24.4]} 26...
Rd2 {[%clk 0:00:32.2]} 27. Rb3 {[%clk 0:01:24.2]} 27... Bb5 {[%clk 0:00:18.5]}
28. Na7 {[%clk 0:01:23.6]} 28... Bc6 {[%clk 0:00:15.3]} 29. Nxc6 {[%clk
0:01:23.2]} 29... bxc6 {[%clk 0:00:15.8]} 30. Rb8+ {[%clk 0:01:22.5]} 30... Kg7
{[%clk 0:00:16.1]} 31. Rb6 {[%clk 0:01:23.4]} 31... a5 {[%clk 0:00:12.7]} 32. a4
{[%clk 0:01:16]} 32... h6 {[%clk 0:00:10]} 33. Rxc6 {[%clk 0:01:15.4]} 33...
Rxb2 {[%clk 0:00:10.1]} 34. Ra6 {[%clk 0:01:16.3]} 34... Rc2 {[%clk 0:00:09.1]}
35. Rxa5 {[%clk 0:01:15.3]} 35... f5 {[%clk 0:00:07.7]} 36. Rb5 {[%clk
0:01:14.7]} 36... Kf6 {[%clk 0:00:06.4]} 37. Rb6+ {[%clk 0:01:14.3]} 37... e6
{[%clk 0:00:06.7]} 38. c6 {[%clk 0:01:14.4]} 38... g5 {[%clk 0:00:06.5]} 39. a5
{[%clk 0:01:11.8]} 39... Ke7 {[%clk 0:00:06.8]} 40. a6 {[%clk 0:01:04.4]} 40...
Kd6 {[%clk 0:00:06.8]} 41. c7+ {[%clk 0:01:02.8]} 41... Kxc7 {[%clk 0:00:04.8]}
42. Rxe6 {[%clk 0:01:03.4]} 42... h5 {[%clk 0:00:03.7]} 43. Re5 {[%clk
0:01:02.6]} 43... h4+ {[%clk 0:00:03.2]} 44. Kf3 {[%clk 0:01:02]} 44... g4+
{[%clk 0:00:02.2]} 45. hxg4 {[%clk 0:01:01.7]} 45... fxg4+ {[%clk 0:00:03.1]}
46. Kxg4 {[%clk 0:01:02.3]} 46... Rxf2 {[%clk 0:00:03.8]} 47. Kh3 {[%clk
0:01:01]} 47... Ra2 {[%clk 0:00:02.8]} 48. Re6 {[%clk 0:00:59.4]} 48... Kd7
{[%clk 0:00:02.6]} 49. Rg6 {[%clk 0:00:59.8]} 49... Ke7 {[%clk 0:00:02.4]} 50.
Kxh4 {[%clk 0:00:58.3]} 50... Kf7 {[%clk 0:00:02.4]} 51. Rb6 {[%clk 0:00:58.9]}
51... Rxg2 {[%clk 0:00:01.2]} 52. a7 {[%clk 0:00:57.9]} 52... Ra2 {[%clk
0:00:01.1]} 53. Rb7+ {[%clk 0:00:58.3]} 53... Ke6 {[%clk 0:00:01.6]} 54. Kg4
{[%clk 0:00:58.9]} 54... Ke5 {[%clk 0:00:02.1]} 55. Kf3 {[%clk 0:00:58.9]} 55...
Ra1 {[%clk 0:00:02.1]} 56. Re7+ {[%clk 0:00:58.2]} 56... Kf6 {[%clk 0:00:02.1]}
57. Rc7 {[%clk 0:00:57.2]} 57... Ke5 {[%clk 0:00:02.4]} 58. Ke2 {[%clk
0:00:54.8]} 58... Ke4 {[%clk 0:00:02.3]} 59. Re7+ {[%clk 0:00:53.8]} 59... Kd5
{[%clk 0:00:02.5]} 60. Kd3 {[%clk 0:00:54.7]} 60... Ra3+ {[%clk 0:00:02.4]} 61.
Kc2 {[%clk 0:00:54.9]} 61... Kd6 {[%clk 0:00:02.9]} 62. Kb2 {[%clk 0:00:52.8]}
62... Ra5 {[%clk 0:00:01]} 63. Rb7 {[%clk 0:00:51.6]} 63... Kc6 {[%clk
0:00:01.3]} 64. Rh7 {[%clk 0:00:50.8]} 1-0

[Event "*** SCC Grand Prix: Titled Tuesday Blitz"]
[Site "Chess.com"]
[Date "2020.09.08"]
[Round "7"]
[White "Beltraxtor"]
[Black "sergiochess83"]
[Result "0-1"]
[WhiteElo "2593"]
[BlackElo "2838"]
[TimeControl "180+1"]
[EndTime "11:19:28 PDT"]
[Termination "sergiochess83 won by resignation"]

1. e4 {[%clk 0:03:00.9]} 1... c6 {[%clk 0:02:59.7]} 2. d4 {[%clk 0:02:59.5]}
2... d5 {[%clk 0:03:00.6]} 3. Nd2 {[%clk 0:02:59.7]} 3... dxe4 {[%clk
0:02:57.7]} 4. Nxe4 {[%clk 0:03:00.6]} 4... Bf5 {[%clk 0:02:58.2]} 5. Ng3 {[%clk
0:03:00.7]} 5... Bg6 {[%clk 0:02:58.5]} 6. Nh3 {[%clk 0:03:01.3]} 6... e6 {[%clk
0:02:57.7]} 7. Nf4 {[%clk 0:03:00.3]} 7... Qh4 {[%clk 0:02:57.7]} 8. Be3 {[%clk
0:02:25.5]} 8... Bd6 {[%clk 0:02:56.5]} 9. Nge2 {[%clk 0:02:25.3]} 9... Bf5
{[%clk 0:02:43.9]} 10. Qd2 {[%clk 0:02:20.5]} 10... Nd7 {[%clk 0:02:29.1]} 11.
O-O-O {[%clk 0:02:15.2]} 11... Nb6 {[%clk 0:02:23.4]} 12. Ng3 {[%clk 0:02:05.8]}
12... Ne7 {[%clk 0:02:21]} 13. Nxe6 {[%clk 0:01:31.3]} 13... Bxe6 {[%clk
0:02:08.9]} 14. Bg5 {[%clk 0:01:30.3]} 14... Bxg3 {[%clk 0:01:56.5]} 15. Bxh4
{[%clk 0:00:55.1]} 15... Bxh4 {[%clk 0:01:57.4]} 16. Bd3 {[%clk 0:00:42.4]}
16... O-O {[%clk 0:01:50]} 17. c3 {[%clk 0:00:38.7]} 17... Rad8 {[%clk
0:01:47.6]} 18. Kb1 {[%clk 0:00:37.9]} 18... Bf6 {[%clk 0:01:40.7]} 19. h3
{[%clk 0:00:35.2]} 19... c5 {[%clk 0:00:54.7]} 20. dxc5 {[%clk 0:00:21.4]} 20...
Na4 {[%clk 0:00:50.6]} 21. Qc2 {[%clk 0:00:15]} 21... Nxc5 {[%clk 0:00:47.9]}
22. Bxh7+ {[%clk 0:00:14.3]} 22... Kh8 {[%clk 0:00:48.5]} 23. Rxd8 {[%clk
0:00:14]} 23... Rxd8 {[%clk 0:00:48.1]} 24. Rd1 {[%clk 0:00:08]} 24... Rc8
{[%clk 0:00:35.9]} 25. Bd3 {[%clk 0:00:06.2]} 25... Nxd3 {[%clk 0:00:35.9]} 26.
Rxd3 {[%clk 0:00:05.9]} 26... Bf5 {[%clk 0:00:36.4]} 27. Ka1 {[%clk 0:00:05.7]}
27... Nc6 {[%clk 0:00:30.6]} 28. Qd2 {[%clk 0:00:05]} 28... Bxd3 {[%clk
0:00:28.4]} 29. Qxd3 {[%clk 0:00:05.9]} 29... Rd8 {[%clk 0:00:29.3]} 30. Qe2
{[%clk 0:00:06.5]} 30... g6 {[%clk 0:00:23]} 31. f4 {[%clk 0:00:06.5]} 31... b5
{[%clk 0:00:15.9]} 32. a3 {[%clk 0:00:04.6]} 32... a6 {[%clk 0:00:14.9]} 33. Kb1
{[%clk 0:00:04.1]} 33... Na5 {[%clk 0:00:14]} 34. Kc2 {[%clk 0:00:04.6]} 34...
Nc4 {[%clk 0:00:14.3]} 35. Qe4 {[%clk 0:00:02.7]} 35... Rd2+ {[%clk 0:00:14.2]}
36. Kc1 {[%clk 0:00:03.2]} 36... Rxb2 {[%clk 0:00:13.1]} 37. Qa8+ {[%clk
0:00:02.9]} 37... Kg7 {[%clk 0:00:13.6]} 38. Qxa6 {[%clk 0:00:03.7]} 38... Bxc3
{[%clk 0:00:13.3]} 39. Qc6 {[%clk 0:00:03.6]} 39... Bd2+ {[%clk 0:00:11.2]} 40.
Kd1 {[%clk 0:00:03.7]} 40... Bxf4 {[%clk 0:00:12.1]} 41. Ke1 {[%clk 0:00:03.2]}
41... Bg3+ {[%clk 0:00:04.7]} 42. Kd1 {[%clk 0:00:03.8]} 42... Be5 {[%clk
0:00:01.5]} 43. Qd5 {[%clk 0:00:03]} 43... Ne3+ {[%clk 0:00:01.5]} 44. Kc1
{[%clk 0:00:02.9]} 44... Nxd5 {[%clk 0:00:02.4]} 45. Kd1 {[%clk 0:00:02.5]}
45... Rxg2 {[%clk 0:00:03.3]} 46. Kc1 {[%clk 0:00:03.4]} 46... Bf4+ {[%clk
0:00:04.2]} 47. Kd1 {[%clk 0:00:04.1]} 47... Ra2 {[%clk 0:00:04.6]} 48. h4
{[%clk 0:00:05]} 48... Rxa3 {[%clk 0:00:05.5]} 49. Ke2 {[%clk 0:00:05]} 49...
Rh3 {[%clk 0:00:06.4]} 50. h5 {[%clk 0:00:05.9]} 50... Rh4 {[%clk 0:00:07.2]}
0-1

[Event "*** SCC Grand Prix: Titled Tuesday Blitz"]
[Site "Chess.com"]
[Date "2020.09.08"]
[Round "7"]
[White "SilviusTiberius"]
[Black "talyamania"]
[Result "1-0"]
[WhiteElo "2474"]
[BlackElo "2337"]
[TimeControl "180+1"]
[EndTime "11:19:30 PDT"]
[Termination "SilviusTiberius won by resignation"]

1. e4 {[%clk 0:03:00.9]} 1... c5 {[%clk 0:02:59.3]} 2. Nf3 {[%clk 0:03:01.1]}
2... Nc6 {[%clk 0:02:59.7]} 3. d4 {[%clk 0:03:01.6]} 3... cxd4 {[%clk
0:02:59.2]} 4. Nxd4 {[%clk 0:03:02.2]} 4... Nf6 {[%clk 0:02:59.3]} 5. Nc3 {[%clk
0:03:02.5]} 5... e5 {[%clk 0:02:58]} 6. Ndb5 {[%clk 0:03:02.8]} 6... d6 {[%clk
0:02:58]} 7. Bg5 {[%clk 0:03:02.9]} 7... a6 {[%clk 0:02:58.1]} 8. Na3 {[%clk
0:03:03]} 8... b5 {[%clk 0:02:58.1]} 9. Bxf6 {[%clk 0:03:02.8]} 9... gxf6 {[%clk
0:02:57.7]} 10. Nd5 {[%clk 0:03:03.3]} 10... f5 {[%clk 0:02:57.5]} 11. Bd3
{[%clk 0:03:03.2]} 11... Be6 {[%clk 0:02:56.3]} 12. c3 {[%clk 0:03:02.6]} 12...
Bxd5 {[%clk 0:02:55.1]} 13. exd5 {[%clk 0:03:02.6]} 13... Ne7 {[%clk 0:02:55.1]}
14. O-O {[%clk 0:03:00.5]} 14... Bg7 {[%clk 0:02:55]} 15. Qh5 {[%clk 0:02:59]}
15... e4 {[%clk 0:02:52.4]} 16. Bc2 {[%clk 0:02:58.4]} 16... O-O {[%clk
0:02:41]} 17. Rae1 {[%clk 0:02:53.5]} 17... Qc8 {[%clk 0:02:32.4]} 18. f3 {[%clk
0:02:24.5]} 18... b4 {[%clk 0:02:04.6]} 19. cxb4 {[%clk 0:02:13.1]} 19... Bxb2
{[%clk 0:01:52]} 20. fxe4 {[%clk 0:02:08.8]} 20... Bxa3 {[%clk 0:01:40.7]} 21.
Rf3 {[%clk 0:01:36.4]} 21... Ng6 {[%clk 0:01:05]} 22. Rh3 {[%clk 0:01:29.8]}
22... Re8 {[%clk 0:00:56.6]} 23. Qxh7+ {[%clk 0:01:28.3]} 23... Kf8 {[%clk
0:00:55.2]} 24. Qh6+ {[%clk 0:01:18.4]} 24... Kg8 {[%clk 0:00:51.5]} 25. Ba4
{[%clk 0:00:36.2]} 25... Bxb4 {[%clk 0:00:20.3]} 26. Bxe8 {[%clk 0:00:34.5]}
26... Qxe8 {[%clk 0:00:19.3]} 27. Qh7+ {[%clk 0:00:32.7]} 27... Kf8 {[%clk
0:00:19]} 28. Rf1 {[%clk 0:00:25.1]} 28... Qxe4 {[%clk 0:00:17.7]} 29. Rg3
{[%clk 0:00:24]} 29... Bc5+ {[%clk 0:00:16.9]} 30. Kh1 {[%clk 0:00:23.8]} 30...
Rb8 {[%clk 0:00:17]} 31. Rxg6 {[%clk 0:00:22.6]} 31... fxg6 {[%clk 0:00:16.7]}
32. Qh8+ {[%clk 0:00:22.9]} 32... Kf7 {[%clk 0:00:16.6]} 33. Qxb8 {[%clk
0:00:23.4]} 33... Qxd5 {[%clk 0:00:16.5]} 34. Qc7+ {[%clk 0:00:23.3]} 34... Kf6
{[%clk 0:00:14.9]} 35. Qd8+ {[%clk 0:00:23.2]} 35... Kg7 {[%clk 0:00:15]} 36.
Qe7+ {[%clk 0:00:22.9]} 36... Qf7 {[%clk 0:00:14.9]} 37. Qxf7+ {[%clk
0:00:18.1]} 37... Kxf7 {[%clk 0:00:15.1]} 38. g3 {[%clk 0:00:18.2]} 38... Kf6
{[%clk 0:00:15.2]} 39. Kg2 {[%clk 0:00:17.8]} 39... a5 {[%clk 0:00:15.4]} 40.
Kf3 {[%clk 0:00:18.2]} 40... a4 {[%clk 0:00:15.6]} 41. Rc1 {[%clk 0:00:16.7]}
41... a3 {[%clk 0:00:15.4]} 42. Rc4 {[%clk 0:00:17]} 42... g5 {[%clk 0:00:14.4]}
43. h4 {[%clk 0:00:16.2]} 43... g4+ {[%clk 0:00:14]} 44. Kf4 {[%clk 0:00:15.3]}
44... Ke6 {[%clk 0:00:14.1]} 45. h5 {[%clk 0:00:12.9]} 45... Kf6 {[%clk
0:00:13.9]} 46. Ra4 {[%clk 0:00:11.3]} 46... Bf2 {[%clk 0:00:09.2]} 47. Rxa3
{[%clk 0:00:10]} 47... Be1 {[%clk 0:00:09.3]} 48. Rd3 {[%clk 0:00:08.8]} 48...
Bb4 {[%clk 0:00:08.8]} 49. Rd5 {[%clk 0:00:08.5]} 49... Ke6 {[%clk 0:00:07.9]}
50. Rxf5 {[%clk 0:00:08.5]} 50... Bd2+ {[%clk 0:00:08.1]} 51. Kxg4 {[%clk
0:00:09.1]} 51... d5 {[%clk 0:00:08.4]} 52. Rf3 {[%clk 0:00:10]} 52... d4 {[%clk
0:00:08]} 53. Rd3 {[%clk 0:00:10.5]} 53... Be3 {[%clk 0:00:08]} 54. Rxe3+ {[%clk
0:00:10.4]} 1-0

[Event "*** SCC Grand Prix: Titled Tuesday Blitz"]
[Site "Chess.com"]
[Date "2020.09.08"]
[Round "7"]
[White "Susal_De_Silva"]
[Black "Off-War"]
[Result "1-0"]
[WhiteElo "2523"]
[BlackElo "2667"]
[TimeControl "180+1"]
[EndTime "11:19:34 PDT"]
[Termination "Susal_De_Silva won by checkmate"]

1. e4 {[%clk 0:03:00.9]} 1... c5 {[%clk 0:02:57.2]} 2. Nf3 {[%clk 0:03:01]} 2...
d6 {[%clk 0:02:57.6]} 3. Bb5+ {[%clk 0:03:01.6]} 3... Nd7 {[%clk 0:02:56.9]} 4.
O-O {[%clk 0:03:01.5]} 4... a6 {[%clk 0:02:56.3]} 5. Bd3 {[%clk 0:03:02]} 5...
Ngf6 {[%clk 0:02:55]} 6. Re1 {[%clk 0:03:02.6]} 6... b5 {[%clk 0:02:54.9]} 7. c4
{[%clk 0:03:02.8]} 7... Bb7 {[%clk 0:02:48.4]} 8. Nc3 {[%clk 0:02:51.8]} 8... b4
{[%clk 0:02:45.7]} 9. Nd5 {[%clk 0:02:50.9]} 9... e6 {[%clk 0:02:46]} 10. Nxf6+
{[%clk 0:02:49.6]} 10... gxf6 {[%clk 0:02:36.5]} 11. a3 {[%clk 0:02:48.6]} 11...
bxa3 {[%clk 0:02:30.9]} 12. bxa3 {[%clk 0:02:49.5]} 12... Rg8 {[%clk 0:02:28]}
13. Bb2 {[%clk 0:02:47.4]} 13... Ne5 {[%clk 0:02:24.4]} 14. Nxe5 {[%clk
0:02:42.7]} 14... fxe5 {[%clk 0:02:25.3]} 15. Qh5 {[%clk 0:02:36.1]} 15... h6
{[%clk 0:02:06.9]} 16. Re3 {[%clk 0:02:31.1]} 16... Qg5 {[%clk 0:01:50.9]} 17.
Qh3 {[%clk 0:02:18.9]} 17... Qe7 {[%clk 0:01:44.2]} 18. Bc3 {[%clk 0:02:12.5]}
18... Bc6 {[%clk 0:01:37.8]} 19. Rb1 {[%clk 0:02:10.1]} 19... Qc7 {[%clk
0:01:09.6]} 20. Be2 {[%clk 0:01:54.6]} 20... Rb8 {[%clk 0:01:07.2]} 21. Rf1
{[%clk 0:01:55.1]} 21... Be7 {[%clk 0:00:51.5]} 22. Bh5 {[%clk 0:01:48.6]} 22...
Bg5 {[%clk 0:00:51.1]} 23. Rg3 {[%clk 0:01:38.3]} 23... Ke7 {[%clk 0:00:42.9]}
24. d3 {[%clk 0:01:05.9]} 24... Rbf8 {[%clk 0:00:36.8]} 25. Bg4 {[%clk 0:00:56]}
25... Bf4 {[%clk 0:00:31.5]} 26. Rf3 {[%clk 0:00:54.8]} 26... f5 {[%clk
0:00:26.6]} 27. Bh5 {[%clk 0:00:41.8]} 27... fxe4 {[%clk 0:00:23]} 28. dxe4
{[%clk 0:00:31.7]} 28... Bxe4 {[%clk 0:00:23.9]} 29. Qh4+ {[%clk 0:00:31.9]}
29... Kd7 {[%clk 0:00:18.9]} 30. Rg3 {[%clk 0:00:25.7]} 30... Qd8 {[%clk
0:00:09.9]} 31. Qh3 {[%clk 0:00:21.4]} 31... Bxg3 {[%clk 0:00:10]} 32. hxg3
{[%clk 0:00:22.3]} 32... Qf6 {[%clk 0:00:09]} 33. f3 {[%clk 0:00:20.6]} 33...
Bc6 {[%clk 0:00:08.9]} 34. Rd1 {[%clk 0:00:20]} 34... Kc7 {[%clk 0:00:05.7]} 35.
Bg4 {[%clk 0:00:20.1]} 35... Re8 {[%clk 0:00:03.8]} 36. Ba5+ {[%clk 0:00:21]}
36... Kb7 {[%clk 0:00:02]} 37. Rb1+ {[%clk 0:00:21.9]} 37... Ka7 {[%clk
0:00:01.8]} 38. Bb6+ {[%clk 0:00:22]} 38... Ka8 {[%clk 0:00:01.9]} 39. Qh5
{[%clk 0:00:18.5]} 39... Rb8 {[%clk 0:00:00.8]} 40. a4 {[%clk 0:00:17.7]} 40...
Rb7 {[%clk 0:00:01.7]} 41. a5 {[%clk 0:00:18.2]} 41... Rgb8 {[%clk 0:00:02.4]}
42. Rd1 {[%clk 0:00:16.3]} 42... e4 {[%clk 0:00:02.7]} 43. Rxd6 {[%clk
0:00:16.2]} 43... e3 {[%clk 0:00:02.6]} 44. Qh1 {[%clk 0:00:12.7]} 44... Rd7
{[%clk 0:00:01.6]} 45. Kh2 {[%clk 0:00:13.6]} 45... Rxd6 {[%clk 0:00:00.9]} 46.
Qb1 {[%clk 0:00:14.5]} 46... Rd2 {[%clk 0:00:01.8]} 47. Qe4 {[%clk 0:00:11.5]}
47... Qb2 {[%clk 0:00:02.2]} 48. Qxc6+ {[%clk 0:00:11.7]} 48... Rb7 {[%clk
0:00:02.8]} 49. Qc8+ {[%clk 0:00:12.1]} 49... Rb8 {[%clk 0:00:03.7]} 50. Qxa6#
{[%clk 0:00:12.8]} 1-0

[Event "*** SCC Grand Prix: Titled Tuesday Blitz"]
[Site "Chess.com"]
[Date "2020.09.08"]
[Round "7"]
[White "emiliocordova"]
[Black "SergeyKarjakin"]
[Result "1-0"]
[WhiteElo "2812"]
[BlackElo "2955"]
[TimeControl "180+1"]
[EndTime "11:19:35 PDT"]
[Termination "emiliocordova won on time"]

1. d4 {[%clk 0:03:00.9]} 1... Nf6 {[%clk 0:03:00.4]} 2. Nf3 {[%clk 0:03:01.8]}
2... d5 {[%clk 0:03:00.2]} 3. g3 {[%clk 0:03:02.1]} 3... c6 {[%clk 0:02:56.2]}
4. c4 {[%clk 0:03:00.2]} 4... Bf5 {[%clk 0:02:53.8]} 5. Nbd2 {[%clk 0:02:59.1]}
5... e6 {[%clk 0:02:40.7]} 6. Bg2 {[%clk 0:02:58.9]} 6... h6 {[%clk 0:02:38.5]}
7. O-O {[%clk 0:02:58.9]} 7... Nbd7 {[%clk 0:02:36.8]} 8. b3 {[%clk 0:02:59]}
8... Be7 {[%clk 0:02:27.2]} 9. Bb2 {[%clk 0:02:59]} 9... O-O {[%clk 0:02:27.9]}
10. Re1 {[%clk 0:02:55.4]} 10... a5 {[%clk 0:02:27]} 11. a3 {[%clk 0:02:54.6]}
11... Ne4 {[%clk 0:02:24.3]} 12. e3 {[%clk 0:02:49]} 12... Ndf6 {[%clk 0:02:18]}
13. Ne5 {[%clk 0:02:40.3]} 13... Nxd2 {[%clk 0:02:12.5]} 14. Qxd2 {[%clk
0:02:41.2]} 14... Bd6 {[%clk 0:02:12.3]} 15. c5 {[%clk 0:02:05.4]} 15... Bc7
{[%clk 0:02:11.7]} 16. b4 {[%clk 0:02:02.7]} 16... Qe7 {[%clk 0:02:02.9]} 17.
Qe2 {[%clk 0:01:55.2]} 17... Bh7 {[%clk 0:01:42.1]} 18. Rec1 {[%clk 0:01:53.3]}
18... axb4 {[%clk 0:01:29.7]} 19. axb4 {[%clk 0:01:52.9]} 19... Ne4 {[%clk
0:01:30.1]} 20. Nd3 {[%clk 0:01:46.8]} 20... Rfc8 {[%clk 0:01:19.1]} 21. f3
{[%clk 0:01:19.2]} 21... Nf6 {[%clk 0:01:18.3]} 22. e4 {[%clk 0:01:19.5]} 22...
dxe4 {[%clk 0:00:50.6]} 23. fxe4 {[%clk 0:01:20.4]} 23... Qd8 {[%clk 0:00:49.9]}
24. Nf2 {[%clk 0:01:08.9]} 24... Rxa1 {[%clk 0:00:47.9]} 25. Rxa1 {[%clk
0:01:08.4]} 25... Ra8 {[%clk 0:00:48.8]} 26. Qe1 {[%clk 0:00:53.4]} 26... Bg6
{[%clk 0:00:40.7]} 27. Qc1 {[%clk 0:00:34.7]} 27... h5 {[%clk 0:00:39.2]} 28.
Bf3 {[%clk 0:00:22.1]} 28... Qe8 {[%clk 0:00:19.3]} 29. Bc3 {[%clk 0:00:21.3]}
29... Rb8 {[%clk 0:00:11.6]} 30. Qg5 {[%clk 0:00:16.3]} 30... b6 {[%clk
0:00:08.7]} 31. Ra7 {[%clk 0:00:11.6]} 31... Bd8 {[%clk 0:00:05.9]} 32. Qf4
{[%clk 0:00:10.5]} 32... Rc8 {[%clk 0:00:05.7]} 33. Qd6 {[%clk 0:00:08.2]} 33...
bxc5 {[%clk 0:00:04.4]} 34. dxc5 {[%clk 0:00:09.1]} 34... Nh7 {[%clk 0:00:04.5]}
35. h4 {[%clk 0:00:08.7]} 35... Bf6 {[%clk 0:00:04]} 36. e5 {[%clk 0:00:08.5]}
36... Bd8 {[%clk 0:00:03.9]} 37. Ne4 {[%clk 0:00:08.3]} 37... Nf8 {[%clk
0:00:02.9]} 38. Qd4 {[%clk 0:00:08.2]} 38... Bxe4 {[%clk 0:00:03.4]} 39. Bxe4
{[%clk 0:00:07.9]} 39... Be7 {[%clk 0:00:03.7]} 40. Qd3 {[%clk 0:00:07.6]} 40...
Rd8 {[%clk 0:00:03.9]} 41. Qf3 {[%clk 0:00:08.2]} 41... Rc8 {[%clk 0:00:03.9]}
42. Qxh5 {[%clk 0:00:08.1]} 42... g6 {[%clk 0:00:04.3]} 43. Qf3 {[%clk
0:00:08.2]} 43... Qd8 {[%clk 0:00:03.5]} 44. Bxc6 {[%clk 0:00:06.3]} 44... Rc7
{[%clk 0:00:03.4]} 45. Rxc7 {[%clk 0:00:05.9]} 45... Qxc7 {[%clk 0:00:04.3]} 46.
Be8 {[%clk 0:00:06.1]} 46... Bd8 {[%clk 0:00:03.8]} 47. Bd4 {[%clk 0:00:06.3]}
47... Qa7 {[%clk 0:00:02.8]} 48. Kg2 {[%clk 0:00:06.2]} 48... Qe7 {[%clk
0:00:02.7]} 49. Qc6 {[%clk 0:00:05.7]} 49... Qa7 {[%clk 0:00:03.6]} 50. Kh3
{[%clk 0:00:05.4]} 50... g5 {[%clk 0:00:02.6]} 51. Qf3 {[%clk 0:00:05.1]} 51...
gxh4 {[%clk 0:00:02.4]} 52. Qg4+ {[%clk 0:00:04.5]} 52... Ng6 {[%clk 0:00:01.6]}
53. c6 {[%clk 0:00:03.4]} 1-0